[Event "Gibraltar Challengers A 2019"]
[Site "Caleta"]
[Date "2019.01.24"]
[Round "4"]
[White "Verneuil, Pascal"]
[Black "Onabogun, Kolade"]
[Result "0-1"]
[ECO "B23"]
[WhiteElo "2114"]
[BlackElo "2189"]
[Annotator "NA"]
[PlyCount "156"]
[EventDate "2019.01.18"]
[EventType "swiss"]
[EventCountry "GGB"]
[SourceTitle "playchess.com"]
[Source "ChessBase"]
[SourceQuality "1"]
[TimeControl "6600+10"]

1. e4 {[%emt 0:01:20]} c5 {[%emt 0:02:12]} 2. Nc3 {[%emt 0:00:08]} Nc6 {[%emt 0:00:50]} 3. Bb5 {[%emt 0:00:05]} g6 {[%emt 0:00:58]} 4. Bxc6 {[%emt 0:00:04]} dxc6 {[%emt 0:00:35]} 5. d3 {[%emt 0:00:07] B23: Closed Sicilian: Lines without g3} (5. f4 Bg7 6. Nf3 h5 7. d3 Nh6 8. h3 O-O 9. O-O b5 10. Be3 c4 11. dxc4 Qxd1 12. Raxd1 bxc4 13. Ne5 {1-0 (34) Jovanovic,Z (2534)-Naiditsch,A (2687) Tallinn 2016}) 5... e5 {[%emt 0:03:43]} 6. Be3 {[%emt 0:00:42]} b6 {[%emt 0:06:08]} 7. Nge2 {[%emt 0:00:26]} Bg7 {[%emt 0:00:09]} 8. Qd2 {[%emt 0:00:14]} h6 {[%emt 0:01:15]} 9. f4 {[%emt 0:00:39]} Nf6 {[%emt 0:01:30]} 10. h3 {[%emt 0:00:29]} exf4 {[%emt 0:02:03]} 11. Bxf4 {[%emt 0:01:31]} Nd7 $146 {[%emt 0:02:35]} ({Predecessor:} 11... Nh5 12. Be3 Qh4+ 13. g3 Qe7 14. a4 Be5 15. g4 {½-½ (61) Altshul,R (2298)-Vunder,Y (2194) St Petersburg 2004}) 12. O-O-O {[%emt 0:03:58]} Qe7 {[%emt 0:03:40]} 13. Kb1 {[%emt 0:05:32]} Bb7 {[%emt 0:01:05]} 14. Rhf1 {[%emt 0:01:06]} O-O-O {[%emt 0:00:35]} 15. Qe3 {[%emt 0:04:19]} Ne5 {[%emt 0:02:09]} 16. Qf2 {[%emt 0:02:22]} Rd7 {[%emt 0:03:03]} 17. g4 {[%emt 0:01:37]} h5 {[%emt 0:02:04]} 18. g5 {[%emt 0:01:26]} Qe6 {[%emt 0:01:19]} 19. Qe3 {[%emt 0:03:58]} Re8 {[%emt 0:00:55]} 20. Bh2 {[%emt 0:00:56]} Ba6 {[%emt 0:03:02]} 21. Qg3 {[%emt 0:09:09]} Kb7 {[%emt 0:02:27]} 22. Nf4 {[%emt 0:05:44]} Qe7 {[%emt 0:00:34]} 23. Rf2 {[%emt 0:00:18]} Qd8 {[%emt 0:01:01]} 24. Nfe2 {[%emt 0:05:18]} b5 {[%emt 0:09:33]} 25. Qe3 {[%emt 0:03:46]} Bf8 {[%emt 0:01:32]} 26. Rdf1 {[%emt 0:00:29]} Qc7 {[%emt 0:06:16]} 27. Nc1 {[%emt 0:03:29]} Kc8 {[%emt 0:18:36]} 28. Nb3 {[%emt 0:04:38]} c4 {[%emt 0:00:25]} 29. d4 {[%emt 0:00:26]} cxb3 {[%emt 0:02:17]} 30. Bxe5 {[%emt 0:00:09]} Bd6 {[%emt 0:01:48]} 31. Bf6 {[%emt 0:10:09]} b4 {[%emt 0:01:03]} 32. Ne2 {[%emt 0:00:13]} bxc2+ {[%emt 0:01:50]} 33. Kxc2 {[%emt 0:00:10]} c5 {[%emt 0:00:28]} 34. Kb1 {[%emt 0:00:27]} Qb7 {[%emt 0:08:11]} 35. e5 {[%emt 0:02:47]} cxd4 {[%emt 0:00:45]} 36. Rc1+ {[%emt 0:00:22]} Rc7 {[%emt 0:01:53]} 37. Nxd4 {[%emt 0:00:17]} Kb8 {[%emt 0:03:00]} 38. Rfc2 {[%emt 0:01:43]} Rxc2 {[%emt 0:02:21]} 39. Rxc2 {[%emt 0:00:11]} Bb5 {[%emt 0:02:18]} 40. Qg3 {[%emt 0:12:18]} Qh1+ {[%emt 0:02:26]} 41. Rc1 {[%emt 0:00:06]} Qe4+ {[%emt 0:00:07]} 42. Ka1 {[%emt 0:00:04]} Bxe5 {[%emt 0:00:14]} 43. Bxe5+ {[%emt 0:05:18]} Qxe5 {[%emt 0:00:04]} 44. Qg1 {[%emt 0:02:04]} Bd7 {[%emt 0:00:19]} 45. Qd1 {[%emt 0:03:07]} Rc8 {[%emt 0:01:10]} 46. Rxc8+ {[%emt 0:02:45]} Kxc8 {[%emt 0:00:01]} 47. Qd2 {[%emt 0:00:35]} Qd5 {[%emt 0:00:19]} 48. Qc1+ {[%emt 0:01:09]} Kd8 {[%emt 0:00:02]} 49. Nc2 {[%emt 0:00:51]} Qc4 {[%emt 0:00:54]} 50. Qd1 {[%emt 0:00:29]} b3 {[%emt 0:00:16]} 51. Na3 {[%emt 0:01:28]} Qc5 {[%emt 0:01:34]} 52. axb3 {[%emt 0:00:14]} Qxg5 {[%emt 0:00:02]} 53. Qd4 {[%emt 0:00:15]} Qa5 {[%emt 0:00:51]} 54. Qd6 {[%emt 0:00:36]} Qe1+ {[%emt 0:00:33]} 55. Ka2 {[%emt 0:00:10]} Qe6 {[%emt 0:00:02]} 56. Qb8+ {[%emt 0:00:31]} Ke7 {[%emt 0:00:02]} 57. Nc4 {[%emt 0:01:17]} Qa6+ {[%emt 0:00:41]} 58. Na3 {[%emt 0:02:03]} Bxh3 {[%emt 0:00:10]} 59. Qb4+ {[%emt 0:00:23]} Qd6 {[%emt 0:00:14]} 60. Qh4+ {[%emt 0:00:10]} Kf8 {[%emt 0:01:22]} 61. Qxh3 {[%emt 0:00:04]} Kg7 {[%emt 0:00:20]} 62. Nc4 {[%emt 0:00:08]} Qf4 {[%emt 0:00:20]} 63. Ne3 {[%emt 0:00:43]} h4 {[%emt 0:00:11]} 64. Nf1 {[%emt 0:01:30]} f5 {[%emt 0:00:10]} 65. Qc3+ {[%emt 0:00:10]} Kh6 {[%emt 0:00:02]} 66. Ne3 {[%emt 0:00:31]} Kg5 {[%emt 0:00:38]} 67. Nd5 {[%emt 0:00:03]} Qd6 {[%emt 0:00:34]} 68. Qd2+ {[%emt 0:00:29]} f4 {[%emt 0:00:01]} 69. Qg2+ {[%emt 0:00:01]} Kf5 {[%emt 0:00:30]} 70. Qf3 {[%emt 0:00:27]} g5 {[%emt 0:00:17]} 71. Ne3+ {[%emt 0:00:03]} Kg6 {[%emt 0:00:09]} 72. Ng4 {[%emt 0:00:04]} Qa6+ {[%emt 0:00:48]} 73. Kb1 {[%emt 0:00:01]} Qe6 $11 {[%emt 0:00:01]} 74. Qd1 {[%emt 0:00:30]} f3 {[%emt 0:00:23]} 75. Nf2 {[%emt 0:00:37]} Qf5+ {[%emt 0:00:05]} 76. Ka2 {[%emt 0:00:05]} g4 {[%emt 0:00:03]} 77. Qd6+ {[%emt 0:00:05]} Kh5 {[%emt 0:00:10]} 78. Nd3 {[%emt 0:00:30]} g3 {[%emt 0:00:20]} 0-1

[Event "Gibraltar Challengers A 2019"]
[Site "Caleta"]
[Date "2019.01.24"]
[Round "4"]
[White "Crocker, Philip J"]
[Black "Cano Sevilla, Ivan"]
[Result "1/2-1/2"]
[ECO "A37"]
[WhiteElo "2109"]
[BlackElo "1950"]
[Annotator "NA"]
[PlyCount "127"]
[EventDate "2019.01.18"]
[EventType "swiss"]
[EventCountry "GGB"]
[SourceTitle "playchess.com"]
[Source "ChessBase"]
[SourceQuality "1"]
[TimeControl "6600+10"]

1. c4 {[%emt 0:00:00]} c5 {[%emt 0:00:11]} 2. g3 {[%emt 0:00:08]} g6 {[%emt 0:00:06]} 3. Bg2 {[%emt 0:00:09]} Bg7 {[%emt 0:00:06]} 4. Nc3 {[%emt 0:00:14]} Nc6 {[%emt 0:00:06]} 5. Nf3 {[%emt 0:00:10]} e5 {[%emt 0:00:19]} 6. O-O {[%emt 0:01:05]} d6 {[%emt 0:00:19]} 7. a3 {[%emt 0:00:58]} Nge7 {[%emt 0:00:21]} 8. b4 {[%emt 0:01:26]} O-O {[%emt 0:04:34]} 9. Rb1 {[%emt 0:01:29] A37: Symmetrical English vs ...g6: 4 Bg2 Bg7 5 Nf3} f5 {[%emt 0:01:23]} (9... Rb8 10. d3 h6 11. Nd2 b6 12. Qa4 Bd7 13. b5 Na5 14. Qc2 f5 15. Bb2 Kh7 16. e3 Qe8 17. Rbe1 Nb7 18. f4 Nd8 {1-0 (40) Bocharov,D (2583)-Tregubov,P (2575) Riadh 2017}) 10. Ne1 {[%emt 0:01:26]} Rb8 {[%emt 0:02:13]} 11. d3 {[%emt 0:01:46]} Be6 {[%emt 0:00:55]} 12. Nc2 {[%emt 0:02:23]} b6 {[%emt 0:03:48]} 13. Ne3 {[%emt 0:02:04]} Qd7 {[%emt 0:03:20]} 14. Bd2 $146 {[%emt 0:04:59]} ({Predecessor:} 14. Ned5 Kh8 15. b5 Nd8 16. Bg5 Nxd5 17. Nxd5 Bxd5 18. Bxd5 {0-1 (28) Raygrotzki,N (2004)-Wittenberg,A (2129) SVR 2009}) 14... f4 {[%emt 0:03:10]} 15. Ned5 {[%emt 0:01:09]} g5 {[%emt 0:01:13]} 16. b5 {[%emt 0:09:49]} Nd4 {[%emt 0:01:39]} 17. Nxe7+ {[%emt 0:01:12]} Qxe7 {[%emt 0:00:08]} 18. e3 {[%emt 0:01:52]} Nf5 {[%emt 0:04:51]} 19. Nd5 {[%emt 0:02:12]} Qf7 {[%emt 0:02:53]} 20. exf4 {[%emt 0:13:20]} gxf4 {[%emt 0:00:21]} 21. Kh1 {[%emt 0:04:34]} Kh8 {[%emt 0:01:26]} 22. Be4 {[%emt 0:04:47]} Nd4 {[%emt 0:16:53]} 23. gxf4 {[%emt 0:02:09]} h5 {[%emt 0:02:06]} 24. Rg1 {[%emt 0:06:55]} Bg4 {[%emt 0:06:26]} 25. Rxg4 {[%emt 0:01:07]} hxg4 {[%emt 0:00:14]} 26. Qxg4 {[%emt 0:00:40]} Nf5 {[%emt 0:02:17]} 27. Rg1 {[%emt 0:03:22]} Rb7 {[%emt 0:09:41]} 28. fxe5 {[%emt 0:03:17]} Bxe5 {[%emt 0:03:25]} 29. Ne3 {[%emt 0:04:39]} Qh7 {[%emt 0:01:43]} 30. f4 {[%emt 0:02:39]} Rg7 {[%emt 0:01:55]} 31. Bxf5 {[%emt 0:02:40]} Rxg4 {[%emt 0:03:00]} 32. Bxh7 {[%emt 0:00:34]} Rgxf4 $16 {[%emt 0:01:30]} 33. Be4 {[%emt 0:04:28]} Rf2 {[%emt 0:10:38]} 34. Rg2 {[%emt 0:01:24]} Bd4 {[%emt 0:00:08]} 35. Bc1 {[%emt 0:04:51]} Rf1+ {[%emt 0:01:31]} 36. Rg1 {[%emt 0:00:21]} Rxc1 {[%emt 0:00:06]} 37. Rxc1 {[%emt 0:00:12]} Bxe3 {[%emt 0:00:02]} 38. Rc2 {[%emt 0:04:40]} Rf1+ {[%emt 0:00:48]} 39. Kg2 {[%emt 0:00:06]} Ra1 {[%emt 0:00:18]} 40. Kf3 {[%emt 0:00:44]} Bd4 {[%emt 0:00:21]} 41. Kg4 {[%emt 0:00:43]} Rxa3 {[%emt 0:02:21]} 42. Kf5 {[%emt 0:00:30]} Ra1 {[%emt 0:05:19]} 43. Ke6 {[%emt 0:01:12]} Be5 {[%emt 0:00:06]} 44. Rf2 {[%emt 0:01:01]} Rg1 {[%emt 0:01:59]} 45. Rf8+ {[%emt 0:00:56]} Rg8 {[%emt 0:00:12]} 46. Rxg8+ {[%emt 0:03:44]} Kxg8 {[%emt 0:00:00]} 47. h4 {[%emt 0:00:54]} Kg7 {[%emt 0:00:38]} 48. h5 {[%emt 0:00:57]} Kf8 {[%emt 0:02:15]} 49. Kd7 {[%emt 0:00:24]} Kf7 {[%emt 0:00:28]} 50. h6 {[%emt 0:00:31]} Bf4 {[%emt 0:01:02]} 51. h7 {[%emt 0:00:13]} Be5 {[%emt 0:00:01]} 52. Bd5+ {[%emt 0:01:13]} Kf8 {[%emt 0:00:34]} 53. Bc6 {[%emt 0:01:33]} Kf7 {[%emt 0:00:21]} 54. h8=Q {[%emt 0:00:30]} Bxh8 {[%emt 0:00:02]} 55. Kxd6 {[%emt 0:00:02]} Bd4 {[%emt 0:00:38]} 56. Kc7 {[%emt 0:00:08]} Ke7 {[%emt 0:00:10]} 57. Kb7 {[%emt 0:00:25]} Kd8 {[%emt 0:00:04]} 58. Kxa7 {[%emt 0:00:23]} Kc7 {[%emt 0:00:06]} 59. Ka6 {[%emt 0:00:12]} Bg1 {[%emt 0:00:12]} 60. Be4 {[%emt 0:00:17]} Bd4 {[%emt 0:00:08]} 61. Ka7 {[%emt 0:00:03]} Bg1 {[%emt 0:00:02]} 62. Bf3 {[%emt 0:00:18]} Bd4 {[%emt 0:00:05]} 63. Be4 {[%emt 0:00:20]} Bg1 {[%emt 0:00:09]} 64. Bf3 {[%emt 0:00:46]} 1/2-1/2

[Event "Gibraltar Challengers A 2019"]
[Site "Caleta"]
[Date "2019.01.24"]
[Round "4"]
[White "Bujakevich, Aleksandr"]
[Black "Hestvik, Elias"]
[Result "1-0"]
[ECO "B15"]
[WhiteElo "2054"]
[BlackElo "1740"]
[Annotator "NA"]
[PlyCount "49"]
[EventDate "2019.01.18"]
[EventType "swiss"]
[EventCountry "GGB"]
[SourceTitle "playchess.com"]
[Source "ChessBase"]
[SourceQuality "1"]
[TimeControl "6600+10"]

1. e4 {[%emt 0:07:54]} c6 {[%emt 0:00:33]} 2. d4 {[%emt 0:00:27]} d5 {[%emt 0:00:08]} 3. Nc3 {[%emt 0:00:12]} dxe4 {[%emt 0:00:20]} 4. Nxe4 {[%emt 0:00:08]} Nf6 {[%emt 0:00:46]} 5. Nxf6+ {[%emt 0:01:01]} exf6 {[%emt 0:00:10]} 6. Bc4 {[%emt 0:06:11]} Bd6 {[%emt 0:07:51]} 7. Qe2+ {[%emt 0:01:24]} Qe7 {[%emt 0:02:29]} 8. d5 {[%emt 0:02:19]} Bg4 {[%emt 0:03:33]} 9. Qxe7+ {[%emt 0:01:37]} Kxe7 {[%emt 0:00:42]} 10. Be3 {[%emt 0:02:29]} Be5 {[%emt 0:04:45]} 11. Ne2 {[%emt 0:16:44]} b5 {[%emt 0:08:54]} 12. Bd3 {[%emt 0:03:32]} cxd5 {[%emt 0:16:20]} 13. Bxb5 {[%emt 0:10:20]} Nd7 {[%emt 0:12:07]} 14. Nd4 {[%emt 0:06:28]} Nb6 {[%emt 0:09:21]} 15. b3 {[%emt 0:24:14]} Bd7 {[%emt 0:03:34]} 16. Bxd7 {[%emt 0:03:16]} Kxd7 {[%emt 0:03:20]} 17. O-O-O {[%emt 0:00:23]} Rhe8 {[%emt 0:04:09]} 18. a4 {[%emt 0:02:53]} Bxd4 {[%emt 0:06:04]} 19. Rxd4 {[%emt 0:00:08]} Kc6 {[%emt 0:00:47]} 20. Rhd1 {[%emt 0:01:50]} Re4 {[%emt 0:04:07]} 21. R4d3 {[%emt 0:03:55]} a5 {[%emt 0:03:39]} 22. Rc3+ {[%emt 0:02:19]} Kb7 {[%emt 0:01:02]} 23. Bxb6 {[%emt 0:00:56]} Kxb6 {[%emt 0:00:08]} 24. Rxd5 {[%emt 0:00:08]} Re7 {[%emt 0:04:03]} 25. Rb5+ {[%emt 0:00:22]} 1-0

[Event "Gibraltar Challengers A 2019"]
[Site "Caleta"]
[Date "2019.01.24"]
[Round "4"]
[White "Kozarcanin, Sead"]
[Black "Hng, Mei-Xian Eunice"]
[Result "1-0"]
[ECO "A03"]
[WhiteElo "2048"]
[BlackElo "1718"]
[Annotator "NA"]
[PlyCount "161"]
[EventDate "2019.01.18"]
[EventType "swiss"]
[EventCountry "GGB"]
[SourceTitle "playchess.com"]
[Source "ChessBase"]
[SourceQuality "1"]
[TimeControl "6600+10"]

1. b3 {[%emt 0:00:00]} Nf6 {[%emt 0:00:21]} 2. Bb2 {[%emt 0:00:00]} g6 {[%emt 0:00:09]} 3. f4 {[%emt 0:00:00]} Bg7 {[%emt 0:01:09]} 4. Nf3 {[%emt 0:00:02]} O-O {[%emt 0:00:43]} 5. e3 {[%emt 0:00:03]} d5 {[%emt 0:02:13]} 6. c4 {[%emt 0:00:14]} Nc6 {[%emt 0:03:42]} 7. Be2 {[%emt 0:00:17]} Bf5 {[%emt 0:07:05]} 8. Na3 {[%emt 0:01:33]} Nb4 {[%emt 0:06:19]} 9. d4 {[%emt 0:03:56]} c5 {[%emt 0:06:16]} 10. O-O {[%emt 0:01:55]} cxd4 {[%emt 0:05:20]} 11. Bxd4 {[%emt 0:03:28]} Nc6 {[%emt 0:00:24]} 12. h3 {[%emt 0:12:04]} Nxd4 {[%emt 0:04:24]} 13. Nxd4 $15 {[%emt 0:00:57]} Ne4 {[%emt 0:04:24]} 14. cxd5 {[%emt 0:01:38]} Nc3 {[%emt 0:05:42]} 15. Qd2 {[%emt 0:00:50]} Nxe2+ {[%emt 0:01:58]} 16. Qxe2 {[%emt 0:00:02]} Qxd5 {[%emt 0:06:31]} 17. Nxf5 {[%emt 0:00:40]} Qxf5 {[%emt 0:00:09]} 18. Rad1 {[%emt 0:00:46]} Rad8 {[%emt 0:01:29]} 19. Kh1 {[%emt 0:05:36]} Qe4 {[%emt 0:03:10]} 20. Nc4 {[%emt 0:00:34]} b5 {[%emt 0:02:36]} 21. Na3 {[%emt 0:01:20]} a6 {[%emt 0:01:40]} 22. Nc2 {[%emt 0:00:45]} e5 {[%emt 0:05:43]} 23. Qf2 {[%emt 0:09:45]} Rc8 {[%emt 0:06:02]} 24. Rd2 {[%emt 0:07:15]} Rc6 {[%emt 0:03:55]} 25. Qf3 {[%emt 0:02:10]} Qxf3 {[%emt 0:00:48]} 26. Rxf3 {[%emt 0:00:02]} Rfc8 {[%emt 0:02:41]} 27. Rff2 {[%emt 0:02:00]} e4 {[%emt 0:04:17]} 28. g4 {[%emt 0:00:28]} f5 {[%emt 0:02:14]} 29. Kg2 {[%emt 0:00:27]} Bc3 {[%emt 0:03:58]} 30. Rd5 {[%emt 0:02:25]} Rc5 {[%emt 0:01:25]} 31. Rd7 {[%emt 0:00:34]} R8c7 {[%emt 0:01:03]} 32. Rd6 {[%emt 0:02:02]} a5 {[%emt 0:01:28]} 33. Rd1 {[%emt 0:05:51]} Kf7 {[%emt 0:01:20]} 34. Re2 {[%emt 0:04:20]} Ke6 {[%emt 0:02:00]} 35. Kf2 {[%emt 0:02:04]} Rd7 {[%emt 0:01:47]} 36. gxf5+ {[%emt 0:00:36]} gxf5 {[%emt 0:00:43]} 37. Rxd7 {[%emt 0:00:44]} Kxd7 {[%emt 0:00:04]} 38. Kg3 {[%emt 0:02:44]} Rc6 {[%emt 0:05:30]} 39. Na3 {[%emt 0:00:44]} Rc5 {[%emt 0:01:53]} 40. Kf2 {[%emt 0:00:36]} Ke6 {[%emt 0:00:20]} 41. Rc2 {[%emt 0:00:57]} Kd5 {[%emt 0:00:50]} 42. Ke2 {[%emt 0:00:19]} Bb4 {[%emt 0:01:24]} 43. Rxc5+ {[%emt 0:01:17]} Kxc5 {[%emt 0:00:02]} 44. Nb1 {[%emt 0:02:14]} Kd5 {[%emt 0:00:13]} 45. Kd1 {[%emt 0:03:08]} Ke6 {[%emt 0:01:07]} 46. Ke2 {[%emt 0:00:36]} Kf6 {[%emt 0:00:21]} 47. a3 {[%emt 0:00:44]} Bc5 {[%emt 0:00:08]} 48. Nc3 {[%emt 0:00:14]} Bxa3 {[%emt 0:00:33]} 49. Nxb5 {[%emt 0:00:01]} Bc5 {[%emt 0:00:07]} 50. Nc3 {[%emt 0:00:32]} Ke6 {[%emt 0:00:13]} 51. Na4 {[%emt 0:01:45]} Bb4 {[%emt 0:00:04]} 52. Nb2 {[%emt 0:02:02]} Kd5 {[%emt 0:00:14]} 53. Kd1 {[%emt 0:01:41]} Kc6 {[%emt 0:00:14]} 54. Kc2 {[%emt 0:00:21]} Kb5 {[%emt 0:00:08]} 55. Nd1 {[%emt 0:01:28]} Bc5 {[%emt 0:00:21]} 56. Kc3 {[%emt 0:00:17]} Bb6 {[%emt 0:00:08]} 57. Kc2 {[%emt 0:00:34]} Kb4 {[%emt 0:00:09]} 58. Nc3 {[%emt 0:00:48]} Bd8 {[%emt 0:00:12]} 59. Nd5+ {[%emt 0:00:17]} Kc5 {[%emt 0:00:02]} 60. Nc3 {[%emt 0:00:15]} Bf6 {[%emt 0:00:09]} 61. Na4+ {[%emt 0:01:31]} Kb4 {[%emt 0:00:05]} 62. Nb6 {[%emt 0:00:07]} Bd8 {[%emt 0:00:10]} 63. Nd5+ {[%emt 0:00:44]} Kc5 {[%emt 0:00:06]} 64. Nc3 {[%emt 0:00:17]} Bf6 {[%emt 0:00:18]} 65. Ne2 {[%emt 0:00:09]} Kb4 {[%emt 0:00:11]} 66. Ng3 {[%emt 0:00:03]} a4 {[%emt 0:00:16]} 67. bxa4 {[%emt 0:00:04]} Kxa4 {[%emt 0:00:01]} 68. Nxf5 {[%emt 0:00:12]} Kb4 {[%emt 0:00:03]} 69. Nd6 {[%emt 0:00:15]} Be7 {[%emt 0:00:10]} 70. Nxe4 {[%emt 0:00:29]} Kc4 {[%emt 0:00:02]} 71. Kd2 {[%emt 0:00:18]} Kd5 {[%emt 0:00:19]} 72. Kd3 {[%emt 0:00:32]} h6 {[%emt 0:00:06]} 73. Nc3+ {[%emt 0:00:26]} Ke6 {[%emt 0:00:09]} 74. e4 {[%emt 0:00:12]} Bd6 {[%emt 0:00:14]} 75. Ke3 {[%emt 0:00:41]} h5 {[%emt 0:00:10]} 76. Kf3 {[%emt 0:00:06]} Be7 {[%emt 0:00:18]} 77. Ne2 {[%emt 0:00:05]} Kf6 {[%emt 0:00:13]} 78. e5+ {[%emt 0:00:09]} Kg6 {[%emt 0:00:18]} 79. Ke4 {[%emt 0:00:05]} Bh4 {[%emt 0:00:13]} 80. f5+ {[%emt 0:00:19]} Kf7 {[%emt 0:00:02]} 81. Nf4 {[%emt 0:00:11]} 1-0

[Event "Gibraltar Challengers A 2019"]
[Site "Caleta"]
[Date "2019.01.24"]
[Round "4"]
[White "Sedgwick, David"]
[Black "Janse, Jan Jaap"]
[Result "0-1"]
[ECO "B15"]
[WhiteElo "2024"]
[BlackElo "2222"]
[Annotator "NA"]
[PlyCount "72"]
[EventDate "2019.01.18"]
[EventType "swiss"]
[EventCountry "GGB"]
[SourceTitle "playchess.com"]
[Source "ChessBase"]
[SourceQuality "1"]
[TimeControl "6600+10"]

1. e4 {[%emt 0:06:17]} c6 {[%emt 0:00:00]} 2. d4 {[%emt 0:00:17]} d5 {[%emt 0:00:13]} 3. Nc3 {[%emt 0:00:05]} g6 {[%emt 0:00:06]} 4. e5 {[%emt 0:01:39]} h5 {[%emt 0:00:07] LiveBook: 116 Games} 5. Bd3 {[%emt 0:00:26]} Nh6 {[%emt 0:00:22] B15: Caro-Kann: 3 Nc3: 3...g6 and 3...dxe4 4 Nxe4 Nf6 5 Nxf6+ exf6} 6. Nf3 {[%emt 0:01:18]} Bg7 {[%emt 0:02:47]} (6... Bf5 7. Bg5 Qb6 8. a3 Na6 9. b4 Bxd3 10. Qxd3 Nc7 11. O-O Ne6 12. a4 Nxg5 13. Nxg5 {½-½ (37) Nikologorsky,M (2235)-Burmakin,V (2523) St Petersburg 2018}) 7. Bg5 {[%emt 0:02:37]} Nf5 $146 {[%emt 0:01:28]} ({Predecessor:} 7... Bf5 8. h3 Bxd3 9. Qxd3 {½-½ (9) Solomatin,V (2343)-Ushakov,G (2216) Riazan 2009}) 8. Bxf5 {[%emt 0:00:47]} Bxf5 {[%emt 0:00:08]} 9. Qd2 {[%emt 0:01:52]} Nd7 {[%emt 0:01:36]} 10. Nh4 {[%emt 0:05:19]} Be6 {[%emt 0:04:46]} 11. Qd3 {[%emt 0:03:40]} Nf8 {[%emt 0:00:28]} 12. Ne2 {[%emt 0:03:11]} Qd7 {[%emt 0:01:15]} 13. Ng3 {[%emt 0:00:25]} O-O-O {[%emt 0:02:46]} 14. Qa3 {[%emt 0:01:41]} f6 {[%emt 0:01:02]} 15. exf6 {[%emt 0:02:13]} (15. Bd2 $11) 15... exf6 {[%emt 0:01:41]} 16. Bd2 {[%emt 0:01:10]} Kb8 {[%emt 0:04:20]} 17. f4 $1 {[%emt 0:05:57]} Bg4 {[%emt 0:11:59]} 18. O-O {[%emt 0:01:06] [#]} f5 $1 {[%emt 0:05:00]} 19. h3 {[%emt 0:07:30]} Bf6 {[%emt 0:02:21]} 20. hxg4 {[%emt 0:00:24]} hxg4 {[%emt 0:00:57]} 21. Nf3 {[%emt 0:05:53]} gxf3 {[%emt 0:00:16]} 22. Rxf3 {[%emt 0:00:12]} Bxd4+ {[%emt 0:00:45]} 23. Be3 {[%emt 0:00:24]} Bxe3+ {[%emt 0:01:38]} 24. Rxe3 {[%emt 0:00:23]} Ne6 {[%emt 0:01:39]} ({Black should play} 24... Qc7 $19 25. Rf1 Nd7) 25. Rae1 {[%emt 0:04:28]} Nc7 {[%emt 0:09:16]} 26. Re7 {[%emt 0:10:43]} Qd6 {[%emt 0:00:17]} 27. Qxd6 {[%emt 0:01:59]} Rxd6 {[%emt 0:00:06]} 28. R1e5 {[%emt 0:01:05]} d4 {[%emt 0:00:37]} 29. Rg7 {[%emt 0:01:50]} Nd5 {[%emt 0:01:02]} 30. Ne2 {[%emt 0:00:49]} c5 {[%emt 0:01:29]} 31. Kf2 {[%emt 0:02:40]} Rhd8 {[%emt 0:03:14]} 32. c4 {[%emt 0:01:59]} Nf6 {[%emt 0:02:47]} 33. Ree7 $2 {[%emt 0:00:54]} (33. Ke1 Ne4 34. Ree7) 33... Rb6 {[%emt 0:00:20]} 34. b3 {[%emt 0:01:22]} Ne4+ {[%emt 0:00:23]} 35. Kf3 {[%emt 0:04:41]} d3 {[%emt 0:00:19]} 36. Nd4 {[%emt 0:00:55]} cxd4 $19 {[%emt 0:00:13]} 0-1

[Event "Gibraltar Challengers A 2019"]
[Site "Caleta"]
[Date "2019.01.24"]
[Round "4"]
[White "Hassomal Daswani, Birjkumar"]
[Black "Osuna Vega, Enrique"]
[Result "1-0"]
[ECO "C03"]
[WhiteElo "2008"]
[BlackElo "2116"]
[Annotator "NA"]
[PlyCount "107"]
[EventDate "2019.01.18"]
[EventType "swiss"]
[EventCountry "GGB"]
[SourceTitle "playchess.com"]
[Source "ChessBase"]
[SourceQuality "1"]
[TimeControl "6600+10"]

1. e4 {[%emt 0:00:00]} e6 {[%emt 0:00:00]} 2. d4 {[%emt 0:00:20]} d5 {[%emt 0:00:00]} 3. Nd2 {[%emt 0:00:46]} a6 {[%emt 0:01:34]} 4. e5 {[%emt 0:02:12]} c5 {[%emt 0:00:18]} 5. c3 {[%emt 0:00:19]} Nc6 {[%emt 0:01:00]} 6. Ngf3 {[%emt 0:00:48]} Bd7 {[%emt 0:11:00]} 7. Be2 {[%emt 0:01:36]} cxd4 {[%emt 0:01:58]} 8. cxd4 {[%emt 0:00:08]} Nh6 {[%emt 0:02:55]} 9. O-O {[%emt 0:00:48]} f6 {[%emt 0:01:34]} 10. Nb3 {[%emt 0:02:05]} Nf7 {[%emt 0:01:22]} 11. exf6 {[%emt 0:02:03]} Qxf6 {[%emt 0:00:53]} 12. Be3 {[%emt 0:01:29]} Bd6 {[%emt 0:02:27]} 13. Rc1 {[%emt 0:01:10]} O-O {[%emt 0:00:39]} 14. Nc5 {[%emt 0:02:16]} Bxc5 {[%emt 0:01:57]} 15. Rxc5 {[%emt 0:01:32]} Rfc8 {[%emt 0:00:28]} 16. Qb3 {[%emt 0:04:35]} b5 {[%emt 0:19:02]} 17. Rfc1 {[%emt 0:03:54]} Nd6 {[%emt 0:02:47]} 18. Bd3 {[%emt 0:07:11]} Nb7 {[%emt 0:02:49]} 19. Rxc6 {[%emt 0:08:27]} Rxc6 {[%emt 0:01:19]} 20. Rxc6 {[%emt 0:00:06]} Bxc6 {[%emt 0:00:06]} 21. Bxh7+ {[%emt 0:04:03]} Kxh7 {[%emt 0:19:42]} 22. Qc2+ {[%emt 0:01:32]} Qf5 {[%emt 0:00:35]} 23. Qxc6 {[%emt 0:01:08]} Qb1+ {[%emt 0:00:19]} 24. Bc1 {[%emt 0:00:51]} Nd6 {[%emt 0:02:02]} 25. Nd2 {[%emt 0:01:57]} Qa1 {[%emt 0:08:05]} 26. Qxa8 {[%emt 0:02:14]} Qxc1+ {[%emt 0:01:09]} 27. Nf1 {[%emt 0:00:00]} Qxb2 {[%emt 0:09:36]} 28. Qf8 {[%emt 0:00:56]} Ne4 {[%emt 0:02:02]} 29. Qf7 {[%emt 0:01:28]} Qe2 {[%emt 0:02:38]} 30. h4 {[%emt 0:00:39]} Nf6 {[%emt 0:02:56]} 31. Ne3 {[%emt 0:02:07]} Qe1+ {[%emt 0:01:14]} 32. Nf1 {[%emt 0:05:09]} a5 {[%emt 0:04:13]} 33. h5 {[%emt 0:01:19]} Qe4 {[%emt 0:00:34]} 34. Ng3 {[%emt 0:02:32]} Qg4 {[%emt 0:00:47]} 35. Qc7 {[%emt 0:03:11]} Nxh5 {[%emt 0:01:26]} 36. Nf1 {[%emt 0:04:10]} a4 {[%emt 0:01:32]} 37. Qe5 {[%emt 0:03:59]} Qf5 {[%emt 0:01:12]} 38. Qe2 {[%emt 0:02:14]} b4 {[%emt 0:00:32]} 39. Qd1 {[%emt 0:00:54]} Nf4 {[%emt 0:00:48]} 40. Ne3 {[%emt 0:03:03]} Qd3 {[%emt 0:00:13]} 41. Qxa4 {[%emt 0:01:17]} Ne2+ {[%emt 0:00:07]} 42. Kh2 {[%emt 0:00:38]} Qxd4 {[%emt 0:00:05]} 43. Qc2+ {[%emt 0:01:08]} Qe4 {[%emt 0:00:34]} 44. Qxe2 {[%emt 0:00:11]} Qe5+ {[%emt 0:00:08]} 45. g3 {[%emt 0:00:56]} d4 {[%emt 0:00:05]} 46. Qd3+ {[%emt 0:02:25]} Kg8 {[%emt 0:00:21]} 47. Nc2 {[%emt 0:02:11]} Qh5+ {[%emt 0:00:29]} 48. Kg1 {[%emt 0:00:07]} e5 {[%emt 0:00:03]} 49. Nxb4 {[%emt 0:00:36]} Qg5 {[%emt 0:00:06]} 50. Qe4 {[%emt 0:03:02]} Qc1+ {[%emt 0:00:19]} 51. Kg2 {[%emt 0:00:07]} Qc3 {[%emt 0:00:05]} 52. Nd3 {[%emt 0:00:59]} Qa3 {[%emt 0:00:10]} 53. Qd5+ {[%emt 0:00:23]} Kh8 {[%emt 0:00:02]} 54. Nxe5 {[%emt 0:00:24]} 1-0